fUSD/lending_fUSD_20250110
["ID","MTS","AMOUNT","RATE_DAILY","PERIOD"]
[348379328,1736484650513,-166.86,0.00010695,2]
[348379329,1736484650525,-256.51403912,0.000107,2]
[348379330,1736484650535,-429.77780017,0.00010781,2]
[348379331,1736484650545,-365.0,0.000108,2]
[348379332,1736484650556,-1000.0,0.000108,2]
[348379333,1736484650565,-231.0,0.000108,2]
[348379334,1736484650575,-975.3,0.000108,2]
[348379335,1736484650585,-5558.0,0.000108,5]
[348379336,1736484650595,-250.0,0.00010811,2]
[348379337,1736484650605,-250.0,0.00010811,2]
[348379338,1736484650614,-3553.59315381,0.00010817,3]
[348379339,1736484650624,-1077.98,0.00010818,2]
[348379340,1736484650634,-98.3361875,0.00010818,2]
[348379341,1736484651080,-512.03966287,9.998e-05,2]
[348379342,1736484651090,-500.0,0.00010272,2]
[348379343,1736484651100,-593.528,0.00010469,2]
[348379344,1736484651111,-587.9938125,0.00010818,2]
[348379345,1736484651123,-1030.35,0.00010818,2]
[348379346,1736484651133,-500.0,0.00010818,2]
[348379347,1736484651145,-1124.15,0.00010818,2]
[348379348,1736484651156,-500.0,0.00010818,2]
[348379349,1736484651165,-673.34,0.00010818,2]
[348379350,1736484651175,-911.31,0.00010818,2]
[348379351,1736484651185,-500.0,0.00010818,2]
[348379352,1736484651195,-500.0,0.00010818,2]
[348379353,1736484651204,-1005.89,0.00010818,2]
[348379354,1736484651213,-1489.65,0.00010818,2]
[348379355,1736484651222,-1435.87,0.00010818,2]
[348379356,1736484651231,-42.16904394,0.00010818,2]
[348379357,1736484651243,-1717.1631246,0.00010818,2]
[348379358,1736484651258,-625.32029203,0.00010818,2]
[348379359,1736484651269,-213.53753943,0.00010818,2]
[348379360,1736484651278,-175.3818178,0.00010818,2]
[348379361,1736484651288,-2049.7681822,0.00010818,2]
[348379362,1736484651297,-1537.44,0.00010818,2]
[348379363,1736484651308,-1949.6,0.00010818,2]
[348379364,1736484651317,-1123.1918178,0.00010818,2]
[348379365,1736484651348,-198.6181822,0.00010818,2]
[348379366,1736484651357,-500.0,0.00010818,2]
[348379367,1736484651369,-1122.93,0.00010818,2]
[348379368,1736484651379,-4386.32,0.00010818,2]
[348379369,1736484651388,-2838.14,0.00010818,2]
[348379370,1736484651397,-1900.58,0.00010818,2]
[348379371,1736484651407,-1040.71,0.00010818,2]
[348379372,1736484651416,-1847.27,0.0001082,2]
[348379373,1736484651424,-1463.33,0.0001082,2]
[348379374,1736484651434,-2541.99,0.0001082,2]
[348379375,1736484651443,-1202.73,0.0001082,2]
[348379376,1736484651452,-820.82,0.0001082,2]
[348379377,1736484651461,-917.52,0.0001082,2]
[348379378,1736484651472,-500.0,0.0001082,2]
[348379379,1736484651481,-500.0,0.0001082,2]
[348379380,1736484651490,-500.0,0.0001082,2]
[348379381,1736484651499,-500.0,0.0001082,2]
[348379382,1736484651509,-2732.32,0.0001082,2]
[348379383,1736484651518,-500.0,0.0001082,2]
[348379384,1736484651528,-500.0,0.0001082,2]
[348379385,1736484651537,-500.0,0.0001082,2]
[348379386,1736484651547,-500.0,0.0001082,2]
[348379387,1736484651556,-971.93,0.0001082,2]
[348379388,1736484651566,-500.0,0.0001082,2]
[348379389,1736484651575,-949.35,0.0001082,2]
[348379390,1736484651585,-500.0,0.0001082,2]
[348379391,1736484651595,-1174.06,0.0001082,2]
[348379392,1736484651604,-1405.33,0.0001082,2]
[348379393,1736484651613,-1182.82,0.0001082,2]
[348379394,1736484651624,-500.0,0.0001082,2]
[348379395,1736484651634,-2064.45,0.0001082,2]
[348379396,1736484651643,-500.0,0.0001082,2]
[348379397,1736484651655,-343.95670196,0.0001082,2]
[348379398,1736484651665,-2513.93,0.0001082,2]
[348379399,1736484651675,-1114.74,0.0001082,2]
[348379400,1736484651685,-2963.82,0.0001082,2]
[348379401,1736484651694,-1202.73,0.0001082,2]
[348379402,1736484651705,-956.22,0.0001082,2]
[348379403,1736484651715,-599.37,0.0001082,2]
[348379404,1736484651725,-1420.91,0.0001082,2]
[348379405,1736484651735,-651.06,0.0001082,2]
[348379406,1736484651745,-1000.16,0.0001082,2]
[348379407,1736484651755,-929.72,0.0001082,2]
[348379408,1736484651764,-1875.9,0.0001082,2]
[348379409,1736484651774,-1415.99,0.0001082,2]
[348379410,1736484651784,-2470.01,0.0001082,2]
[348379411,1736484651794,-500.0,0.0001082,2]
[348379412,1736484651804,-500.0,0.0001082,2]
[348379413,1736484651813,-905.78,0.0001082,2]
[348379414,1736484651823,-1418.09,0.0001082,2]
[348379415,1736484651837,-500.0,0.0001082,2]
[348379416,1736484651846,-1578.25,0.0001082,2]
[348379417,1736484651856,-500.0,0.0001082,2]
[348379418,1736484651865,-922.35,0.0001082,2]
[348379419,1736484651876,-500.0,0.0001082,2]
[348379420,1736484651885,-500.0,0.0001082,2]
[348379421,1736484651896,-1794.7,0.0001082,2]
[348379422,1736484651907,-817.9,0.0001082,2]
[348379423,1736484651917,-500.0,0.0001082,2]
[348379424,1736484651926,-569.82,0.0001082,2]
[348379425,1736484651935,-851.22,0.0001082,2]
[348379426,1736484651946,-1013.55,0.0001082,2]
[348379427,1736484651955,-938.63,0.0001082,2]
[348379428,1736484651968,-1060.72,0.0001082,2]
[348379429,1736484651979,-500.0,0.0001082,2]
[348379430,1736484651989,-2742.27,0.0001082,2]
[348379431,1736484651999,-1060.82,0.0001082,2]
[348379432,1736484652010,-937.95,0.0001082,2]
[348379433,1736484652020,-572.49,0.0001082,2]
[348379434,1736484652029,-797.18,0.0001082,2]
[348379435,1736484652038,-2691.05,0.0001082,2]
[348379436,1736484652047,-1946.08,0.0001082,2]
[348379437,1736484652056,-500.0,0.0001082,2]
[348379438,1736484652065,-500.0,0.0001082,2]
[348379439,1736484652075,-1181.95,0.0001082,2]
[348379440,1736484652084,-481.684011,0.00010821,2]
[348379441,1736484652092,-488.181607,0.00010821,2]
[348379442,1736484652101,-1127.3,0.00010821,2]
[348379443,1736484652110,-725.69,0.00010821,2]
[348379444,1736484652119,-500.0,0.00010821,2]
[348379445,1736484652129,-500.0,0.00010821,2]
[348379446,1736484652138,-902.2,0.00010821,2]
[348379447,1736484652148,-500.0,0.00010821,2]
[348379448,1736484652157,-500.0,0.00010821,2]
[348379449,1736484652166,-500.0,0.00010821,2]
[348379450,1736484652175,-1020.12,0.00010821,2]
[348379451,1736484652184,-500.0,0.00010821,2]
[348379452,1736484652194,-1367.82,0.00010821,2]
[348379453,1736484652203,-1680.36,0.00010821,2]
[348379454,1736484652211,-500.0,0.00010821,2]
[348379455,1736484652220,-500.0,0.00010821,2]
[348379456,1736484652230,-694.19,0.00010821,2]
[348379457,1736484652240,-741.28,0.00010821,2]
[348379458,1736484652249,-500.0,0.00010821,2]
[348379459,1736484652259,-500.0,0.00010821,2]
[348379460,1736484652269,-501.15,0.00010821,2]
[348379461,1736484652279,-1138.17,0.00010821,2]
[348379462,1736484652288,-500.0,0.00010821,2]
[348379463,1736484652297,-252.64277275,0.00010821,2]
[348379464,1736484652307,-1077.38,0.00010821,2]
[348379465,1736484652317,-514.43118739,0.00010821,2]
[348379466,1736484652326,-500.0,0.00010821,2]
[348379467,1736484652335,-1442.45,0.00010821,2]
[348379468,1736484652344,-500.0,0.00010821,2]
[348379469,1736484652354,-635.38,0.00010821,2]
[348379470,1736484652363,-273.25005203,0.00010821,2]
[348379471,1736484652373,-2483.48,0.00010821,2]
[348379472,1736484652382,-500.0,0.00010821,2]
[348379473,1736484652392,-1865.01,0.00010821,2]
[348379474,1736484652401,-500.0,0.00010821,2]
[348379475,1736484652411,-500.0,0.00010821,2]
[348379476,1736484652420,-1236.44,0.00010821,2]
[348379477,1736484652430,-600.1,0.00010821,2]
[348379478,1736484652440,-500.0,0.00010821,2]
[348379479,1736484652449,-753.42,0.00010821,2]
[348379480,1736484652459,-500.0,0.00010821,2]
[348379481,1736484652468,-500.0,0.00010821,2]
[348379482,1736484652478,-510.08,0.00010821,2]
[348379483,1736484652487,-500.0,0.00010821,2]
[348379484,1736484652495,-500.0,0.00010821,2]
[348379485,1736484652505,-746.32,0.00010821,2]
[348379486,1736484652514,-500.0,0.00010821,2]
[348379487,1736484652524,-500.0,0.00010821,2]
[348379488,1736484652533,-500.0,0.00010821,2]
[348379489,1736484652542,-623.82,0.00010821,2]
[348379490,1736484652553,-665.92,0.00010821,2]
[348379491,1736484652562,-500.0,0.00010821,2]
[348379492,1736484652571,-1064.58,0.00010821,2]
[348379493,1736484652581,-569.23,0.00010821,2]
[348379494,1736484652591,-500.0,0.00010821,2]
[348379495,1736484652601,-848.41,0.00010821,2]
[348379496,1736484652610,-896.41,0.00010821,2]
[348379497,1736484652619,-500.0,0.00010821,2]
[348379498,1736484652628,-885.42,0.00010821,2]
[348379499,1736484652638,-593.2,0.00010821,2]
[348379500,1736484652648,-500.0,0.00010821,2]
[348379501,1736484652657,-500.0,0.00010821,2]
[348379502,1736484652667,-500.0,0.00010821,2]
[348379503,1736484652676,-500.0,0.00010821,2]
[348379504,1736484652686,-500.0,0.00010821,2]
[348379505,1736484652696,-781.86,0.00010821,2]
[348379506,1736484652705,-500.0,0.00010821,2]
[348379507,1736484652715,-500.0,0.00010821,2]
[348379508,1736484652725,-627.1,0.00010821,2]
[348379509,1736484652734,-500.0,0.00010821,2]
[348379510,1736484652744,-501.3,0.00010821,2]
[348379511,1736484652755,-500.0,0.00010821,2]
[348379512,1736484652764,-500.0,0.00010821,2]
[348379513,1736484652775,-505.63,0.00010821,2]
[348379514,1736484652784,-500.0,0.00010821,2]
[348379515,1736484652794,-500.0,0.00010821,2]
[348379516,1736484652803,-500.0,0.00010821,2]
[348379517,1736484652813,-742.95,0.00010821,2]
[348379518,1736484652822,-895.1,0.00010821,2]
[348379519,1736484652836,-500.0,0.00010821,2]
[348379520,1736484652845,-500.22,0.00010821,2]
[348379521,1736484652857,-505.59846249,0.00010821,2]
[348379522,1736484652867,-604.73,0.00010821,2]
[348379523,1736484652877,-500.0,0.00010821,2]
[348379524,1736484652889,-500.0,0.00010821,2]
[348379525,1736484652898,-546.1,0.00010821,2]
[348379526,1736484652907,-849.22,0.00010821,2]
[348379527,1736484652916,-500.0,0.00010821,2]
[348379528,1736484652927,-500.0,0.00010821,2]
[348379529,1736484652937,-500.0,0.00010821,2]
[348379530,1736484652947,-500.0,0.00010821,2]
[348379531,1736484652958,-910.0,0.00010821,2]
[348379532,1736484652968,-500.0,0.00010821,2]
[348379533,1736484652977,-500.0,0.00010821,2]
[348379534,1736484652988,-566.64,0.00010821,2]
[348379535,1736484652998,-591.36,0.00010821,2]
[348379536,1736484653009,-500.0,0.00010821,2]
[348379537,1736484653020,-500.0,0.00010821,2]
[348379538,1736484653030,-729.95,0.00010821,2]
[348379539,1736484653041,-721.61,0.00010821,2]
[348379540,1736484653051,-507.74,0.00010821,2]
[348379541,1736484653061,-500.0,0.00010821,2]
[348379542,1736484653070,-3052.95,0.00010821,2]
[348379543,1736484653080,-853.84,0.00010821,2]
[348379544,1736484653090,-500.0,0.00010821,2]
[348379545,1736484653099,-500.0,0.00010821,2]
[348379546,1736484653108,-500.0,0.00010821,2]
[348379547,1736484653118,-925.22,0.00010821,2]
[348379548,1736484653127,-500.0,0.00010821,2]
[348379549,1736484653137,-503.66,0.00010821,2]
[348379550,1736484653147,-619.12,0.00010821,2]
[348379551,1736484653156,-500.0,0.00010821,2]
[348379552,1736484653165,-544.66993405,0.00010821,2]
[348379553,1736484653174,-500.0,0.00010821,2]
[348379554,1736484653184,-858.77,0.00010821,2]
[348379555,1736484653193,-500.0,0.00010821,2]
[348379556,1736484653202,-505.47,0.00010821,2]
[348379557,1736484653212,-859.28,0.00010821,2]
[348379558,1736484653221,-503.68,0.00010821,2]
[348379559,1736484653230,-917.01,0.00010821,2]
[348379560,1736484653240,-673.83,0.00010821,2]
[348379561,1736484653249,-862.97,0.00010821,2]
[348379562,1736484653259,-342.64499131,0.00010821,2]
[348379563,1736484653268,-709.24,0.00010821,2]
[348379564,1736484653277,-799.11,0.00010821,2]
[348379565,1736484653287,-856.6,0.00010821,2]
[348379566,1736484653297,-895.27,0.00010821,2]
[348379567,1736484653307,-894.14,0.00010821,2]
[348379568,1736484653317,-500.0,0.00010821,2]
[348379569,1736484653327,-500.0,0.00010821,2]
[348379570,1736484653337,-803.76,0.00010821,2]
[348379571,1736484653347,-955.82,0.00010821,2]
[348379572,1736484653357,-500.0,0.00010821,2]
[348379573,1736484653366,-310.98337892,0.00010821,2]
[348379574,1736484653376,-917.6,0.00010821,2]
[348379575,1736484653385,-617.7,0.00010821,2]
[348379576,1736484653395,-500.0,0.00010821,2]
[348379577,1736484653405,-500.0,0.00010821,2]
[348379578,1736484653415,-1008.75,0.00010821,2]
[348379579,1736484653424,-500.0,0.00010821,2]
[348379580,1736484653434,-2991.26,0.00010821,2]
[348379581,1736484653443,-500.0,0.00010821,2]
[348379582,1736484653658,-614.89520059,0.00010821,2]
[348379587,1736484820198,168.64,7.77e-05,2]
[348379588,1736485195012,1347.01,8.219e-05,2]
[348379589,1736485397071,-190.0,0.00011,7]
[348379590,1736485397381,-2882.67,0.000118,9]
[348379591,1736485410463,151.11178023,0.00017,90]
[348379614,1736485831774,-150.0,9.271e-05,2]
[348379615,1736485831784,-195.08781611,9.313e-05,2]
[348379616,1736485831796,-17.57218389,9.313e-05,2]
[348379617,1736485831807,-1000.0,9.348e-05,2]
[348379618,1736485831817,-250.0,9.54e-05,2]
[348379619,1736485831828,-250.0,9.599e-05,2]
[348379620,1736485831838,-319.86,9.695e-05,2]
[348379621,1736485831847,-250.0,9.712e-05,2]
[348379622,1736485831856,-168.56,9.756e-05,2]
[348379623,1736485831866,-150.0,9.768e-05,2]
[348379624,1736485831876,-150.0,9.835e-05,2]
[348379625,1736485831885,-150.0,9.836e-05,2]
[348379626,1736485831895,-2084.56265756,9.899e-05,2]
[348379627,1736485831908,-14.89944244,9.899e-05,2]
[348379628,1736485831917,-200.0,9.977e-05,2]
[348379629,1736485831927,-200.0,9.991e-05,2]
[348379630,1736485831937,-150.0,9.997e-05,2]
[348379631,1736485831946,-531.20527384,9.998e-05,2]
[348379632,1736485831956,-500.0,9.998e-05,2]
[348379633,1736485831965,-520.91,9.998e-05,2]
[348379634,1736485831976,-500.0,9.998e-05,2]
[348379635,1736485831987,-500.0,9.998e-05,2]
[348379636,1736485831997,-515.58016275,9.998e-05,2]
[348379637,1736485832007,-519.85,9.998e-05,2]
[348379638,1736485832016,-500.0,9.998e-05,2]
[348379639,1736485832026,-500.0,9.998e-05,2]
[348379640,1736485832036,-408.55512097,9.998e-05,2]
[348379641,1736485832082,-91.44487903,9.998e-05,2]
[348379642,1736485832092,-431.58582317,9.998e-05,2]
[348379658,1736485837657,-68.41417683,9.998e-05,2]
[348379659,1736485837667,-505.63754767,9.998e-05,2]
[348379660,1736485837676,-438.1167755,9.998e-05,2]
[348379661,1736485837717,-260.8832245,9.998e-05,2]
[348379662,1736485837727,-500.0,9.998e-05,2]
[348379663,1736485837735,-308.0597603,9.998e-05,2]
[348379664,1736485837747,-191.9402397,9.998e-05,2]
[348379665,1736485837756,-500.0,9.998e-05,2]
[348379666,1736485837766,-500.0,9.998e-05,2]
[348379667,1736485837775,-147.86614616,9.998e-05,2]
[348379668,1736485837962,-426.82385384,9.998e-05,2]
[348379669,1736485837972,-500.0,9.998e-05,2]
[348379670,1736485837982,-500.0,9.998e-05,2]
[348379671,1736485837992,-510.37683422,9.998e-05,2]
[348379672,1736485838003,-500.0,9.998e-05,2]
[348379673,1736485838014,-500.0,9.998e-05,2]
[348379674,1736485838024,-500.0,9.998e-05,2]
[348379675,1736485838035,-500.0,9.998e-05,2]
[348379676,1736485838053,-500.0,9.998e-05,2]
[348379677,1736485838063,-500.0,9.998e-05,2]
[348379678,1736485838073,-500.0,9.998e-05,2]
[348379679,1736485838084,-620.37,9.998e-05,2]
[348379680,1736485838095,-500.0,9.998e-05,2]
[348379681,1736485838104,-500.0,9.998e-05,2]
[348379682,1736485838114,-55.78346104,9.998e-05,2]
[348379684,1736485839979,-339.37849996,9.998e-05,2]
[348379685,1736485839991,-104.838039,9.998e-05,2]
[348379686,1736485840002,-633.00489435,9.998e-05,2]
[348379687,1736485840012,-240.39706666,9.998e-05,2]
[348379688,1736485840023,-259.60293334,9.998e-05,2]
[348379689,1736485840032,-56.46706666,9.998e-05,2]
[348379690,1736485840048,-443.53293334,9.998e-05,2]
[348379691,1736485840058,-500.0,9.998e-05,2]
[348379692,1736485840068,-500.0,9.998e-05,2]
[348379693,1736485840077,-500.0,9.998e-05,2]
[348379694,1736485840087,-500.0,9.998e-05,2]
[348379695,1736485840096,-519.05,9.998e-05,2]
[348379696,1736485840106,-560.48737679,9.998e-05,2]
[348379697,1736485840115,-500.0,9.998e-05,2]
[348379698,1736485840125,-631.3479929,9.998e-05,2]
[348379699,1736485840135,-500.0,9.998e-05,2]
[348379700,1736485840144,-500.0,9.998e-05,2]
[348379701,1736485840153,-500.0,9.998e-05,2]
[348379702,1736485840163,-500.0,9.998e-05,2]
[348379703,1736485840172,-500.0,9.998e-05,2]
[348379704,1736485840182,-500.0,9.998e-05,2]
[348379705,1736485840191,-500.0,9.998e-05,2]
[348379706,1736485840200,-500.0,9.998e-05,2]
[348379707,1736485840210,-500.0,9.998e-05,2]
[348379708,1736485840219,-500.0,9.998e-05,2]
[348379709,1736485840229,-500.0,9.998e-05,2]
[348379710,1736485840238,-500.0,9.998e-05,2]
[348379711,1736485840247,-500.0,9.998e-05,2]
[348379712,1736485840258,-500.0,9.998e-05,2]
[348379713,1736485840267,-500.0,9.998e-05,2]
[348379714,1736485840277,-512.49,9.998e-05,2]
[348379715,1736485840286,-548.71,9.998e-05,2]
[348379716,1736485840296,-517.44,9.998e-05,2]
[348379717,1736485840305,-638.71,9.998e-05,2]
[348379718,1736485840314,-747.11,9.998e-05,2]
[348379719,1736485840324,-500.0,9.998e-05,2]
[348379720,1736485840333,-500.0,9.998e-05,2]
[348379721,1736485840346,-500.0,9.998e-05,2]
[348379722,1736485840355,-500.0,9.998e-05,2]
[348379723,1736485840365,-500.0,9.998e-05,2]
[348379724,1736485840374,-500.0,9.998e-05,2]
[348379725,1736485840385,-776.6,9.998e-05,2]
[348379726,1736485840396,-620.59,9.998e-05,2]
[348379727,1736485840406,-796.51,9.998e-05,2]
[348379728,1736485840416,-802.9,9.998e-05,2]
[348379729,1736485840426,-500.0,9.998e-05,2]
[348379730,1736485840435,-500.0,9.998e-05,2]
[348379731,1736485840445,-546.03,9.998e-05,2]
[348379732,1736485840454,-500.0,9.998e-05,2]
[348379733,1736485840463,-591.26,9.998e-05,2]
[348379734,1736485840473,-500.0,9.998e-05,2]
[348379735,1736485840482,-500.0,9.998e-05,2]
[348379736,1736485840491,-500.0,9.998e-05,2]
[348379737,1736485840501,-500.0,9.998e-05,2]
[348379738,1736485840511,-737.07,9.998e-05,2]
[348379739,1736485840520,-500.0,9.998e-05,2]
[348379740,1736485840529,-500.0,9.998e-05,2]
[348379741,1736485840539,-592.26,9.998e-05,2]
[348379742,1736485840548,-730.39,9.998e-05,2]
[348379743,1736485840558,-500.0,9.998e-05,2]
[348379744,1736485840567,-878.76,9.998e-05,2]
[348379745,1736485840577,-625.64,9.998e-05,2]
[348379746,1736485840586,-542.31,9.998e-05,2]
[348379747,1736485840596,-825.5,9.998e-05,2]
[348379748,1736485840606,-500.0,9.998e-05,2]
[348379749,1736485840615,-500.0,9.998e-05,2]
[348379750,1736485840625,-500.0,9.998e-05,2]
[348379751,1736485840634,-1008.98,9.998e-05,2]
[348379752,1736485840644,-649.97,9.998e-05,2]
[348379753,1736485840654,-965.32,9.998e-05,2]
[348379754,1736485840663,-500.0,9.998e-05,2]
[348379755,1736485840674,-1051.3,9.998e-05,2]
[348379756,1736485840683,-500.0,9.998e-05,2]
[348379757,1736485840693,-638.06,9.998e-05,2]
[348379758,1736485840703,-856.2,9.998e-05,2]
[348379759,1736485840713,-2492.72,9.999e-05,2]
[348379760,1736485840722,-500.0,9.999e-05,2]
[348379761,1736485840732,-1117.6,9.999e-05,2]
[348379762,1736485840742,-2716.02,9.999e-05,2]
[348379763,1736485840751,-1051.97,9.999e-05,2]
[348379764,1736485840761,-942.9,9.999e-05,2]
[348379765,1736485840770,-1386.35,9.999e-05,2]
[348379766,1736485840782,-1345.32,9.999e-05,2]
[348379767,1736485840792,-2039.72,9.999e-05,2]
[348379768,1736485840802,-1211.66,9.999e-05,2]
[348379769,1736485840811,-500.0,9.999e-05,2]
[348379770,1736485840821,-4020.8,9.999e-05,2]
[348379771,1736485840831,-500.0,9.999e-05,2]
[348379772,1736485840840,-1742.2,9.999e-05,2]
[348379773,1736485840850,-2381.68,9.999e-05,2]
[348379774,1736485840859,-1409.32,9.999e-05,2]
[348379775,1736485840868,-1787.14,9.999e-05,2]
[348379776,1736485840877,-973.16,9.999e-05,2]
[348379777,1736485840887,-500.0,9.999e-05,2]
[348379778,1736485840897,-1029.35,9.999e-05,2]
[348379779,1736485840906,-1504.91,9.999e-05,2]
[348379780,1736485840916,-2601.63,9.999e-05,2]
[348379781,1736485840926,-1352.02,9.999e-05,2]
[348379782,1736485840935,-2290.17,9.999e-05,2]
[348379783,1736485840945,-962.88,9.999e-05,2]
[348379784,1736485840955,-6045.19,9.999e-05,2]
[348379785,1736485840964,-836.69,9.999e-05,2]
[348379786,1736485840974,-1073.22,9.999e-05,2]
[348379787,1736485840983,-1240.83,9.999e-05,2]
[348379788,1736485840992,-739.05,9.999e-05,2]
[348379789,1736485841002,-500.0,9.999e-05,2]
[348379790,1736485841011,-596.81,9.999e-05,2]
[348379791,1736485841268,-830.3,9.999e-05,2]
[348379792,1736485841279,-823.66,9.999e-05,2]
[348379793,1736485841288,-1261.47,9.999e-05,2]
[348379794,1736485841298,-2382.11,9.999e-05,2]
[348379795,1736485841308,-460.49801484,0.0001,2]
[348379796,1736485841317,-171.0,0.0001,2]
[348379797,1736485841327,-169.24,0.0001,2]
[348379798,1736485841336,-153.22,0.00010137,2]
[348379799,1736485841350,-150.0,0.00010143,2]
[348379800,1736485841359,-154.16049384,0.0001017,2]
[348379801,1736485841368,-884.6031,0.00010171,2]
[348379802,1736485841383,-3201.0931,0.00010172,2]
[348379803,1736485841399,-187.30792574,0.00010186,2]
[348379804,1736485841409,-500.0,0.00010186,2]
[348379805,1736485841419,-500.0,0.0001027,2]
[348379806,1736485841429,-830.78,0.0001027,2]
[348379807,1736485841440,-986.39,0.0001027,2]
[348379808,1736485841450,-1171.11,0.0001027,2]
[348379809,1736485841460,-789.43,0.0001027,2]
[348379810,1736485841470,-928.95,0.0001027,2]
[348379811,1736485841480,-935.11,0.0001027,2]
[348379812,1736485841489,-1179.99,0.0001027,2]
[348379813,1736485841499,-1222.87,0.0001027,2]
[348379814,1736485841509,-503.58228007,0.0001027,2]
[348379815,1736485841519,-500.0,0.0001027,2]
[348379816,1736485841529,-1043.32,0.0001027,2]
[348379817,1736485841539,-1000.0,0.0001027,2]
[348379818,1736485841549,-2469.85,0.0001027,2]
[348379819,1736485841558,-1184.09,0.0001027,2]
[348379820,1736485841568,-984.96,0.0001027,2]
[348379821,1736485841578,-987.59,0.0001027,2]
[348379822,1736485841588,-774.76,0.0001027,2]
[348379823,1736485841598,-1658.41,0.0001027,2]
[348379824,1736485841609,-2058.34,0.0001027,2]
[348379825,1736485841619,-1289.09,0.0001027,2]
[348379826,1736485841630,-500.0,0.0001027,2]
[348379827,1736485841640,-500.0,0.0001027,2]
[348379828,1736485841650,-768.63,0.0001027,2]
[348379829,1736485841660,-500.0,0.0001027,2]
[348379830,1736485841670,-1495.58,0.0001027,2]
[348379831,1736485841680,-500.0,0.0001027,2]
[348379832,1736485841690,-2242.54,0.0001027,2]
[348379833,1736485841701,-2213.99,0.0001027,2]
[348379834,1736485841711,-709.35,0.0001027,2]
[348379835,1736485841721,-782.19,0.0001027,2]
[348379836,1736485841731,-2285.23,0.0001027,2]
[348379837,1736485841741,-396.46050095,0.0001027,2]
[348379838,1736485841751,-500.0,0.00010271,2]
[348379839,1736485841761,-500.0,0.00010271,2]
[348379840,1736485841771,-1123.38,0.00010271,2]
[348379841,1736485841782,-500.0,0.00010271,2]
[348379842,1736485841792,-500.0,0.00010271,2]
[348379843,1736485841802,-627.85,0.00010271,2]
[348379844,1736485841812,-500.0,0.00010271,2]
[348379845,1736485841822,-500.0,0.00010271,2]
[348379846,1736485841832,-500.0,0.00010271,2]
[348379847,1736485841842,-456.43371346,0.00010271,2]
[348379848,1736485841853,-500.0,0.00010271,2]
[348379849,1736485841863,-500.0,0.00010271,2]
[348379850,1736485841873,-512.8783389,0.00010271,2]
[348379851,1736485841882,-887.68,0.00010271,2]
[348379852,1736485841892,-500.0,0.00010271,2]
[348379853,1736485841902,-639.22,0.00010271,2]
[348379854,1736485841912,-769.91,0.00010271,2]
[348379855,1736485841922,-500.0,0.00010271,2]
[348379856,1736485841931,-500.0,0.00010271,2]
[348379857,1736485841941,-500.0,0.00010271,2]
[348379858,1736485841952,-742.36,0.00010271,2]
[348379859,1736485841962,-500.0,0.00010271,2]
[348379860,1736485841971,-500.0,0.00010271,2]
[348379861,1736485841981,-500.0,0.00010271,2]
[348379862,1736485841990,-500.0,0.00010271,2]
[348379863,1736485842001,-250.28044485,0.00010271,2]
[348379864,1736485842011,-582.68,0.00010271,2]
[348379865,1736485842021,-362.8059795,0.00010271,2]
[348379866,1736485842031,-500.0,0.00010271,2]
[348379867,1736485842040,-784.36,0.00010271,2]
[348379868,1736485842050,-500.0,0.00010271,2]
[348379869,1736485842059,-774.75,0.00010271,2]